[Event "Late-Titled-Tuesday-Blitz-February-13-2024"]
[Site "Chess.com"]
[Date "2024.02.13"]
[Round "3"]
[White "Defenstrator"]
[Black "tarno17"]
[Result "1-0"]
[WhiteElo "2361"]
[BlackElo "2118"]
[TimeControl "180+1"]
[EndTime "14:27:50 PST"]
[Termination "Defenstrator won on time"]

1. e3 {[%clk 0:03:00]} 1... d5 {[%clk 0:02:56.2]} 2. d4 {[%clk 0:02:59.7]} 2...
e6 {[%clk 0:02:56.2]} 3. c4 {[%clk 0:02:59.8]} 3... Nf6 {[%clk 0:02:56.7]} 4.
Nc3 {[%clk 0:03:00.1]} 4... Be7 {[%clk 0:02:57.4]} 5. Bd3 {[%clk 0:03:00.4]}
5... O-O {[%clk 0:02:58.1]} 6. g4 {[%clk 0:02:59.1]} 6... dxc4 {[%clk
0:02:51.5]} 7. Bxc4 {[%clk 0:02:57.4]} 7... b5 {[%clk 0:02:37]} 8. Bxb5 {[%clk
0:02:44.9]} 8... Bb7 {[%clk 0:02:36.6]} 9. Nf3 {[%clk 0:02:39.8]} 9... c5 {[%clk
0:02:05]} 10. Rg1 {[%clk 0:02:29.5]} 10... Ne4 {[%clk 0:01:38.3]} 11. Bd3 {[%clk
0:02:18]} 11... Ng5 {[%clk 0:01:19]} 12. Ne5 {[%clk 0:02:07.2]} 12... f6 {[%clk
0:01:05.7]} 13. Nc4 {[%clk 0:01:58.7]} 13... Nf3+ {[%clk 0:01:03.5]} 14. Kf1
{[%clk 0:01:58.2]} 14... Nxh2+ {[%clk 0:00:58.5]} 15. Ke1 {[%clk 0:01:54.4]}
15... Nf3+ {[%clk 0:00:56.7]} 16. Kf1 {[%clk 0:01:46]} 16... Nxg1 {[%clk
0:00:54.5]} 17. Kxg1 {[%clk 0:01:46.8]} 17... cxd4 {[%clk 0:00:54.3]} 18. exd4
{[%clk 0:01:46.9]} 18... Nc6 {[%clk 0:00:40.8]} 19. d5 {[%clk 0:01:43.7]} 19...
exd5 {[%clk 0:00:27.9]} 20. Nxd5 {[%clk 0:01:42.9]} 20... Kh8 {[%clk 0:00:24.7]}
21. Qf3 {[%clk 0:01:36.9]} 21... Ne5 {[%clk 0:00:09.5]} 22. Nxe5 {[%clk
0:01:36.5]} 22... fxe5 {[%clk 0:00:03.6]} 23. Qh3 {[%clk 0:01:28.1]} 23... h6
{[%clk 0:00:04]} 24. Nxe7 {[%clk 0:01:16.1]} 24... Qxe7 {[%clk 0:00:04.2]} 25.
Bxh6 {[%clk 0:00:59.5]} 25... Rf3 {[%clk 0:00:02.6]} 26. Bxg7+ {[%clk
0:00:57.3]} 26... Kxg7 {[%clk 0:00:03.2]} 27. Qh7+ {[%clk 0:00:55.3]} 27... Kf8
{[%clk 0:00:02.6]} 28. Qh8+ {[%clk 0:00:51.7]} 28... Kf7 {[%clk 0:00:03.2]} 29.
Bc4+ {[%clk 0:00:51.9]} 29... Kg6 {[%clk 0:00:03]} 30. Qh5+ {[%clk 0:00:38.2]}
30... Kg7 {[%clk 0:00:03]} 31. Re1 {[%clk 0:00:37.1]} 31... Qf6 {[%clk
0:00:02.6]} 32. Rxe5 {[%clk 0:00:35.4]} 32... Rxf2 {[%clk 0:00:02.4]} 33. Rg5+
{[%clk 0:00:33.7]} 33... Kf8 {[%clk 0:00:02.4]} 34. Rg8+ {[%clk 0:00:30.8]}
34... Ke7 {[%clk 0:00:02.7]} 35. Qc5+ {[%clk 0:00:31.1]} 35... Kd7 {[%clk
0:00:02.8]} 36. Bb5+ {[%clk 0:00:26]} 36... Bc6 {[%clk 0:00:03.2]} 37. Bxc6+
{[%clk 0:00:23.6]} 37... Qxc6 {[%clk 0:00:03.7]} 38. Rg7+ {[%clk 0:00:24]} 38...
Kd8 {[%clk 0:00:01.4]} 39. Qxc6 {[%clk 0:00:24.1]} 1-0

[Event "Late-Titled-Tuesday-Blitz-February-13-2024"]
[Site "Chess.com"]
[Date "2024.02.13"]
[Round "3"]
[White "Jarrahi2452"]
[Black "Grindaveci"]
[Result "1-0"]
[WhiteElo "2819"]
[BlackElo "2447"]
[TimeControl "180+1"]
[EndTime "14:27:52 PST"]
[Termination "Jarrahi2452 won by checkmate"]

1. d4 {[%clk 0:03:00.9]} 1... d5 {[%clk 0:02:57.7]} 2. c4 {[%clk 0:03:01.3]}
2... e6 {[%clk 0:02:58.1]} 3. Nc3 {[%clk 0:03:01.3]} 3... Nf6 {[%clk 0:02:58.7]}
4. cxd5 {[%clk 0:03:01.2]} 4... exd5 {[%clk 0:02:59.6]} 5. Bg5 {[%clk
0:03:00.8]} 5... c6 {[%clk 0:02:59.5]} 6. e3 {[%clk 0:02:58.4]} 6... Bd6 {[%clk
0:03:00]} 7. Bd3 {[%clk 0:02:56.8]} 7... O-O {[%clk 0:03:00.3]} 8. Nge2 {[%clk
0:02:56.2]} 8... Nbd7 {[%clk 0:02:59.1]} 9. Qc2 {[%clk 0:02:53.4]} 9... h6
{[%clk 0:02:58.8]} 10. Bf4 {[%clk 0:02:53]} 10... Qe7 {[%clk 0:02:56]} 11. O-O
{[%clk 0:02:48.6]} 11... Re8 {[%clk 0:02:55.5]} 12. h3 {[%clk 0:02:45.1]} 12...
Nf8 {[%clk 0:02:51.7]} 13. a3 {[%clk 0:02:37.4]} 13... Ne4 {[%clk 0:02:50.4]}
14. Bxe4 {[%clk 0:02:36.1]} 14... Bxf4 {[%clk 0:02:48.1]} 15. Nxf4 {[%clk
0:02:31.5]} 15... dxe4 {[%clk 0:02:47.9]} 16. d5 {[%clk 0:02:31.1]} 16... Bd7
{[%clk 0:02:43.7]} 17. Rfd1 {[%clk 0:02:27.9]} 17... Qe5 {[%clk 0:02:41.3]} 18.
dxc6 {[%clk 0:02:22.1]} 18... Bxc6 {[%clk 0:02:40.6]} 19. Nfd5 {[%clk
0:02:22.6]} 19... Rad8 {[%clk 0:02:37]} 20. Nb4 {[%clk 0:02:19.2]} 20... Rc8
{[%clk 0:02:24.7]} 21. Rd4 {[%clk 0:02:13]} 21... f5 {[%clk 0:02:13]} 22. Qb3+
{[%clk 0:02:07.9]} 22... Qe6 {[%clk 0:02:08.6]} 23. Qd1 {[%clk 0:01:56.5]} 23...
a5 {[%clk 0:02:03.2]} 24. Nbd5 {[%clk 0:01:52.8]} 24... Qe5 {[%clk 0:01:59.3]}
25. Qb3 {[%clk 0:01:44.4]} 25... Kh7 {[%clk 0:01:50.2]} 26. Rad1 {[%clk
0:01:39.6]} 26... Ne6 {[%clk 0:01:49.8]} 27. Nb6 {[%clk 0:01:36.6]} 27... Nxd4
{[%clk 0:01:24.8]} 28. exd4 {[%clk 0:01:35.6]} 28... Qd6 {[%clk 0:01:21.1]} 29.
Nxc8 {[%clk 0:01:34.6]} 29... Rxc8 {[%clk 0:01:21.1]} 30. d5 {[%clk 0:01:29.2]}
30... Bd7 {[%clk 0:01:10.6]} 31. Nb5 {[%clk 0:01:26]} 31... Qb6 {[%clk
0:01:05.2]} 32. a4 {[%clk 0:01:23.8]} 32... Rc5 {[%clk 0:01:03.1]} 33. d6 {[%clk
0:01:16.6]} 33... Qc6 {[%clk 0:00:53.8]} 34. Qe3 {[%clk 0:01:08.1]} 34... Rd5
{[%clk 0:00:50]} 35. Rc1 {[%clk 0:01:05.9]} 35... Qa6 {[%clk 0:00:35.7]} 36. Nc7
{[%clk 0:00:53.3]} 36... Qxd6 {[%clk 0:00:35.6]} 37. Nxd5 {[%clk 0:00:53.2]}
37... Qxd5 {[%clk 0:00:36.5]} 38. Qc5 {[%clk 0:00:51.4]} 38... Qb3 {[%clk
0:00:30.7]} 39. Qe7 {[%clk 0:00:47.1]} 39... Bc6 {[%clk 0:00:21.4]} 40. Qe5
{[%clk 0:00:45.9]} 40... Qf7 {[%clk 0:00:12.7]} 41. Rc5 {[%clk 0:00:44.3]} 41...
g6 {[%clk 0:00:11.3]} 42. Rxa5 {[%clk 0:00:44.2]} 42... h5 {[%clk 0:00:11.3]}
43. Ra8 {[%clk 0:00:38.9]} 43... Qc4 {[%clk 0:00:10.6]} 44. Rh8# {[%clk
0:00:37.2]} 1-0

[Event "Late-Titled-Tuesday-Blitz-February-13-2024"]
[Site "Chess.com"]
[Date "2024.02.13"]
[Round "3"]
[White "DraningWaterHi"]
[Black "Misterfox120"]
[Result "1/2-1/2"]
[WhiteElo "2211"]
[BlackElo "2416"]
[TimeControl "180+1"]
[EndTime "14:27:52 PST"]
[Termination "Game drawn by agreement"]

1. d4 {[%clk 0:03:00.9]} 1... d5 {[%clk 0:02:59]} 2. c4 {[%clk 0:03:00.8]} 2...
e6 {[%clk 0:02:58]} 3. Nf3 {[%clk 0:03:00]} 3... a6 {[%clk 0:02:56.2]} 4. Nbd2
{[%clk 0:02:50.1]} 4... Nf6 {[%clk 0:02:50.5]} 5. g3 {[%clk 0:02:49]} 5... c5
{[%clk 0:02:46.4]} 6. cxd5 {[%clk 0:02:47.6]} 6... Nxd5 {[%clk 0:02:31.5]} 7.
dxc5 {[%clk 0:02:44]} 7... Bxc5 {[%clk 0:02:30.8]} 8. Qb3 {[%clk 0:02:37.5]}
8... O-O {[%clk 0:02:20.2]} 9. Bg2 {[%clk 0:02:36.8]} 9... Qb6 {[%clk
0:02:11.7]} 10. O-O {[%clk 0:02:35.3]} 10... Nc6 {[%clk 0:02:05.2]} 11. e4
{[%clk 0:02:28.6]} 11... Nf6 {[%clk 0:01:53.3]} 12. Qxb6 {[%clk 0:02:18.7]}
12... Bxb6 {[%clk 0:01:54.2]} 13. Re1 {[%clk 0:02:13.2]} 13... Ng4 {[%clk
0:01:51.1]} 14. Re2 {[%clk 0:02:11]} 14... Bd7 {[%clk 0:01:45.3]} 15. h3 {[%clk
0:02:10.9]} 15... Nge5 {[%clk 0:01:45]} 16. Kh2 {[%clk 0:01:51.8]} 16... Nd3
{[%clk 0:01:31.6]} 17. Nc4 {[%clk 0:01:39.3]} 17... Ba7 {[%clk 0:01:02.4]} 18.
Be3 {[%clk 0:01:37]} 18... b5 {[%clk 0:00:42]} 19. Bxa7 {[%clk 0:01:29.2]} 19...
bxc4 {[%clk 0:00:41.9]} 20. Be3 {[%clk 0:01:26.7]} 20... Rab8 {[%clk 0:00:39.8]}
21. Rb1 {[%clk 0:01:22.9]} 21... Rfc8 {[%clk 0:00:20.6]} 22. Nd4 {[%clk
0:01:19.4]} 22... Nxd4 {[%clk 0:00:20.2]} 23. Bxd4 {[%clk 0:01:20.3]} 23... e5
{[%clk 0:00:20.4]} 24. Bc3 {[%clk 0:01:20.2]} 24... Rb7 {[%clk 0:00:16.8]} 25.
Rd2 {[%clk 0:01:19.9]} 25... Rcc7 {[%clk 0:00:17.4]} 26. Bf1 {[%clk 0:01:19.7]}
26... Be6 {[%clk 0:00:15.7]} 27. Bxd3 {[%clk 0:01:18.4]} 27... cxd3 {[%clk
0:00:16.6]} 28. Rxd3 {[%clk 0:01:19]} 28... Rd7 {[%clk 0:00:16.5]} 29. Rxd7
{[%clk 0:01:17.3]} 29... Rxd7 {[%clk 0:00:17.4]} 30. a3 {[%clk 0:01:17.8]} 30...
f6 {[%clk 0:00:17.1]} 31. h4 {[%clk 0:01:17.9]} 31... Kf7 {[%clk 0:00:17.3]} 32.
Re1 {[%clk 0:01:15.4]} 32... Bb3 {[%clk 0:00:16.7]} 33. Re2 {[%clk 0:01:14]}
33... Ke6 {[%clk 0:00:16.7]} 34. Rd2 {[%clk 0:01:14]} 34... Rxd2 {[%clk
0:00:16.5]} 35. Bxd2 {[%clk 0:01:14.9]} 35... h5 {[%clk 0:00:15.8]} 36. f3
{[%clk 0:01:13.9]} 36... g6 {[%clk 0:00:16.3]} 37. Kg2 {[%clk 0:01:13.6]} 37...
Kd6 {[%clk 0:00:14.4]} 38. Kf2 {[%clk 0:01:13.3]} 38... Bc4 {[%clk 0:00:14.4]}
39. Bb4+ {[%clk 0:01:13.3]} 39... Ke6 {[%clk 0:00:14.1]} 40. Ke3 {[%clk
0:01:12.8]} 40... Kf7 {[%clk 0:00:13.7]} 41. f4 {[%clk 0:01:10]} 41... Ke6
{[%clk 0:00:13.2]} 42. fxe5 {[%clk 0:01:09.4]} 42... Kxe5 {[%clk 0:00:13.7]} 43.
Bc3+ {[%clk 0:01:09.6]} 43... Ke6 {[%clk 0:00:13.7]} 44. Kf4 {[%clk 0:01:08.5]}
44... Bd3 {[%clk 0:00:13.5]} 45. e5 {[%clk 0:01:08.7]} 45... fxe5+ {[%clk
0:00:13.1]} 46. Bxe5 {[%clk 0:01:07.8]} 46... Kd5 {[%clk 0:00:12.9]} 47. Bc3
{[%clk 0:01:07.9]} 47... Kc4 {[%clk 0:00:12.5]} 48. Ke5 {[%clk 0:01:07.5]} 48...
Kb5 {[%clk 0:00:11.3]} 49. Kd4 {[%clk 0:01:06.4]} 49... Bf5 {[%clk 0:00:10.9]}
50. Ke3 {[%clk 0:01:06.1]} 50... a5 {[%clk 0:00:11.1]} 51. b3 {[%clk 0:01:01.6]}
51... Bc2 {[%clk 0:00:10.5]} 52. a4+ {[%clk 0:01:01.9]} 52... Ka6 {[%clk
0:00:09.2]} 53. b4 {[%clk 0:01:02.1]} 53... axb4 {[%clk 0:00:09.3]} 54. Bxb4
{[%clk 0:01:03]} 54... Bxa4 {[%clk 0:00:09.7]} 55. Kf4 {[%clk 0:01:03]} 55...
Bc2 {[%clk 0:00:10.3]} 1/2-1/2

[Event "Late-Titled-Tuesday-Blitz-February-13-2024"]
[Site "Chess.com"]
[Date "2024.02.13"]
[Round "3"]
[White "mbojan"]
[Black "Hikaru"]
[Result "0-1"]
[WhiteElo "2849"]
[BlackElo "3334"]
[TimeControl "180+1"]
[EndTime "14:27:53 PST"]
[Termination "Hikaru won on time"]

1. d4 {[%clk 0:03:00.9]} 1... g6 {[%clk 0:03:00.5]} 2. c4 {[%clk 0:02:50.9]}
2... Bg7 {[%clk 0:03:00.8]} 3. Nc3 {[%clk 0:02:51.4]} 3... c5 {[%clk 0:03:00.1]}
4. Nf3 {[%clk 0:02:45.9]} 4... Nc6 {[%clk 0:03:00.2]} 5. d5 {[%clk 0:02:39.7]}
5... Na5 {[%clk 0:02:59]} 6. e4 {[%clk 0:02:31.2]} 6... d6 {[%clk 0:02:58.9]} 7.
h3 {[%clk 0:02:28.1]} 7... e5 {[%clk 0:02:51]} 8. Bd3 {[%clk 0:02:25.2]} 8...
Ne7 {[%clk 0:02:50.8]} 9. g4 {[%clk 0:02:25]} 9... Bd7 {[%clk 0:02:46.1]} 10.
Qe2 {[%clk 0:02:17.4]} 10... a6 {[%clk 0:02:45.3]} 11. Be3 {[%clk 0:02:14.5]}
11... Rb8 {[%clk 0:02:44]} 12. b3 {[%clk 0:01:56.9]} 12... Qc7 {[%clk
0:02:34.5]} 13. Nd2 {[%clk 0:01:56.5]} 13... O-O {[%clk 0:02:30]} 14. f3 {[%clk
0:01:56.4]} 14... f5 {[%clk 0:02:30.4]} 15. gxf5 {[%clk 0:01:43.8]} 15... gxf5
{[%clk 0:02:30.6]} 16. Rg1 {[%clk 0:01:43.6]} 16... f4 {[%clk 0:02:13.8]} 17.
Bf2 {[%clk 0:01:42.7]} 17... Kh8 {[%clk 0:02:13.9]} 18. h4 {[%clk 0:01:40.5]}
18... Nc8 {[%clk 0:02:08.3]} 19. a4 {[%clk 0:01:31.6]} 19... Be8 {[%clk
0:02:00.3]} 20. Kd1 {[%clk 0:01:29.5]} 20... Na7 {[%clk 0:01:57.7]} 21. Kc2
{[%clk 0:01:29]} 21... Bf6 {[%clk 0:01:52.9]} 22. Ndb1 {[%clk 0:01:19.1]} 22...
Qe7 {[%clk 0:01:49.2]} 23. Na3 {[%clk 0:01:15.2]} 23... Nc8 {[%clk 0:01:45]} 24.
Kb2 {[%clk 0:00:59.3]} 24... Bh5 {[%clk 0:01:43.8]} 25. Nc2 {[%clk 0:00:52.5]}
25... Qd8 {[%clk 0:01:36.7]} 26. Na3 {[%clk 0:00:46.2]} 26... Nb6 {[%clk
0:01:36.6]} 27. Rg2 {[%clk 0:00:44.2]} 27... Na8 {[%clk 0:01:34.6]} 28. Rag1
{[%clk 0:00:41.1]} 28... Nc7 {[%clk 0:01:31.3]} 29. Ka2 {[%clk 0:00:36.9]} 29...
Ra8 {[%clk 0:01:27.6]} 30. Qd2 {[%clk 0:00:35]} 30... b6 {[%clk 0:01:27.5]} 31.
Qe2 {[%clk 0:00:35]} 31... Qd7 {[%clk 0:01:25.3]} 32. Kb2 {[%clk 0:00:35.4]}
32... Qh3 {[%clk 0:01:21.4]} 33. Qd2 {[%clk 0:00:07.9]} 33... Bxf3 {[%clk
0:01:16.8]} 34. Bf1 {[%clk 0:00:08.6]} 34... Bxg2 {[%clk 0:01:17]} 35. Rxg2
{[%clk 0:00:09.5]} 35... Qd7 {[%clk 0:01:17]} 36. Be2 {[%clk 0:00:10.1]} 36...
Rg8 {[%clk 0:01:16]} 37. Rxg8+ {[%clk 0:00:06.5]} 37... Rxg8 {[%clk 0:01:15]}
38. Bf3 {[%clk 0:00:07.4]} 38... Qh3 {[%clk 0:01:14.9]} 39. Qe2 {[%clk 0:00:08]}
39... Bxh4 {[%clk 0:01:11.1]} 40. Bxh4 {[%clk 0:00:07.6]} 40... Qxh4 {[%clk
0:01:12]} 41. Nc2 {[%clk 0:00:08.4]} 41... Rg3 {[%clk 0:01:11.6]} 42. Ne1 {[%clk
0:00:07.7]} 42... Ne8 {[%clk 0:01:08.9]} 43. Qf2 {[%clk 0:00:07.8]} 43... Nf6
{[%clk 0:01:07.8]} 44. Ne2 {[%clk 0:00:07.9]} 44... Nxe4 {[%clk 0:01:02.3]} 45.
Qf1 {[%clk 0:00:08.2]} 45... Nd2 {[%clk 0:01:01.5]} 46. Qf2 {[%clk 0:00:08.3]}
46... Rh3 {[%clk 0:00:49]} 47. Qg2 {[%clk 0:00:01.9]} 47... Rh2 {[%clk
0:00:45.5]} 0-1

[Event "Late-Titled-Tuesday-Blitz-February-13-2024"]
[Site "Chess.com"]
[Date "2024.02.13"]
[Round "3"]
[White "FM_Kappeler"]
[Black "Witik"]
[Result "0-1"]
[WhiteElo "2259"]
[BlackElo "2651"]
[TimeControl "180+1"]
[EndTime "14:27:54 PST"]
[Termination "Witik won by checkmate"]

1. d4 {[%clk 0:02:57.1]} 1... Nf6 {[%clk 0:02:59.7]} 2. c4 {[%clk 0:02:56.8]}
2... e6 {[%clk 0:02:59.9]} 3. g3 {[%clk 0:02:56.5]} 3... d5 {[%clk 0:02:53.2]}
4. Bg2 {[%clk 0:02:56.5]} 4... Bb4+ {[%clk 0:02:49.2]} 5. Bd2 {[%clk 0:02:55.5]}
5... Be7 {[%clk 0:02:49]} 6. Nf3 {[%clk 0:02:54.7]} 6... O-O {[%clk 0:02:49.1]}
7. O-O {[%clk 0:02:54.6]} 7... Nbd7 {[%clk 0:02:48.5]} 8. Na3 {[%clk 0:02:41.5]}
8... Ne4 {[%clk 0:02:45.4]} 9. Be3 {[%clk 0:02:35]} 9... c6 {[%clk 0:02:39.7]}
10. Rc1 {[%clk 0:02:31]} 10... f5 {[%clk 0:02:35.4]} 11. Nc2 {[%clk 0:02:11.8]}
11... b6 {[%clk 0:02:28.1]} 12. b4 {[%clk 0:02:10.2]} 12... Ba6 {[%clk
0:02:21.7]} 13. b5 {[%clk 0:02:06]} 13... cxb5 {[%clk 0:02:20.6]} 14. cxd5
{[%clk 0:02:05.7]} 14... exd5 {[%clk 0:02:20.8]} 15. Nd2 {[%clk 0:01:52.9]}
15... Ndf6 {[%clk 0:02:08.5]} 16. f3 {[%clk 0:01:33.2]} 16... Nc3 {[%clk
0:02:03.5]} 17. Qe1 {[%clk 0:01:31.1]} 17... b4 {[%clk 0:02:00.2]} 18. Rf2
{[%clk 0:01:27.8]} 18... Rc8 {[%clk 0:01:53.2]} 19. Na1 {[%clk 0:01:13.4]} 19...
Nxe2+ {[%clk 0:01:46.6]} 20. Rxe2 {[%clk 0:01:04.2]} 20... Rxc1 {[%clk
0:01:47.5]} 21. Qxc1 {[%clk 0:01:03.7]} 21... Bxe2 {[%clk 0:01:47.1]} 22. Nab3
{[%clk 0:00:58.1]} 22... a5 {[%clk 0:01:41.9]} 23. Qb1 {[%clk 0:00:57.4]} 23...
Qd7 {[%clk 0:01:19.5]} 24. Bh3 {[%clk 0:00:48.1]} 24... g6 {[%clk 0:01:09.1]}
25. Kf2 {[%clk 0:00:44.3]} 25... Ba6 {[%clk 0:01:01.9]} 26. Bf4 {[%clk
0:00:25.5]} 26... Bd6 {[%clk 0:00:52.7]} 27. Bh6 {[%clk 0:00:16.2]} 27... Re8
{[%clk 0:00:46.3]} 28. Bf1 {[%clk 0:00:14.2]} 28... Bxf1 {[%clk 0:00:40.9]} 29.
Nxf1 {[%clk 0:00:14]} 29... f4 {[%clk 0:00:33.4]} 30. gxf4 {[%clk 0:00:13.2]}
30... Qe6 {[%clk 0:00:31.7]} 31. Qc2 {[%clk 0:00:08.2]} 31... Qe1+ {[%clk
0:00:27.4]} 32. Kg1 {[%clk 0:00:08.5]} 32... Re2 {[%clk 0:00:14.5]} 33. Qc8+
{[%clk 0:00:07.9]} 33... Ne8 {[%clk 0:00:15.1]} 34. Qd7 {[%clk 0:00:03.1]} 34...
Qf2+ {[%clk 0:00:13.8]} 35. Kh1 {[%clk 0:00:03.5]} 35... Qxf1# {[%clk
0:00:14.4]} 0-1

[Event "Late-Titled-Tuesday-Blitz-February-13-2024"]
[Site "Chess.com"]
[Date "2024.02.13"]
[Round "3"]
[White "lucliasco"]
[Black "Grischuk"]
[Result "1/2-1/2"]
[WhiteElo "2843"]
[BlackElo "3094"]
[TimeControl "180+1"]
[EndTime "14:27:56 PST"]
[Termination "Game drawn - insufficient material"]

1. e4 {[%clk 0:02:57.7]} 1... e5 {[%clk 0:02:59.9]} 2. Nf3 {[%clk 0:02:57]} 2...
Nc6 {[%clk 0:03:00.7]} 3. Nc3 {[%clk 0:02:57.9]} 3... Nf6 {[%clk 0:03:00.5]} 4.
d4 {[%clk 0:02:57.9]} 4... exd4 {[%clk 0:03:01.4]} 5. Nxd4 {[%clk 0:02:58.7]}
5... Bb4 {[%clk 0:03:01.8]} 6. Nxc6 {[%clk 0:02:58.5]} 6... bxc6 {[%clk
0:03:02.7]} 7. Bd3 {[%clk 0:02:58.9]} 7... d5 {[%clk 0:03:03.4]} 8. Bd2 {[%clk
0:02:57.4]} 8... O-O {[%clk 0:03:01.5]} 9. O-O {[%clk 0:02:55.8]} 9... Rb8
{[%clk 0:03:00]} 10. Re1 {[%clk 0:02:51.7]} 10... Re8 {[%clk 0:02:59.2]} 11. b3
{[%clk 0:02:42.6]} 11... h6 {[%clk 0:02:35.7]} 12. exd5 {[%clk 0:02:34.3]} 12...
Rxe1+ {[%clk 0:02:30.6]} 13. Qxe1 {[%clk 0:02:35.2]} 13... cxd5 {[%clk
0:02:30.7]} 14. Na4 {[%clk 0:02:33.2]} 14... Bd6 {[%clk 0:02:28.5]} 15. h3
{[%clk 0:02:33.4]} 15... c5 {[%clk 0:02:20.7]} 16. c4 {[%clk 0:02:33.3]} 16...
d4 {[%clk 0:02:14.8]} 17. Qc1 {[%clk 0:02:30.3]} 17... Qc7 {[%clk 0:02:08.1]}
18. Qc2 {[%clk 0:02:24.9]} 18... Bb7 {[%clk 0:01:51.8]} 19. Re1 {[%clk
0:02:24.8]} 19... Qc6 {[%clk 0:01:42.3]} 20. Bf1 {[%clk 0:02:18.4]} 20... Ne4
{[%clk 0:01:38.5]} 21. Nb2 {[%clk 0:02:14.2]} 21... Re8 {[%clk 0:01:28.1]} 22.
Nd3 {[%clk 0:02:00.6]} 22... Qc7 {[%clk 0:01:18.7]} 23. Bc1 {[%clk 0:01:55.3]}
23... Re6 {[%clk 0:01:12.7]} 24. f3 {[%clk 0:01:40.4]} 24... Bh2+ {[%clk
0:00:44.9]} 25. Kh1 {[%clk 0:01:38.7]} 25... Ng3+ {[%clk 0:00:45.5]} 26. Kxh2
{[%clk 0:01:39.4]} 26... Nxf1+ {[%clk 0:00:46.1]} 27. Kg1 {[%clk 0:01:40.3]}
27... Rxe1 {[%clk 0:00:41.3]} 28. Nxe1 {[%clk 0:01:32.3]} 28... Ng3 {[%clk
0:00:16.6]} 29. Nd3 {[%clk 0:01:31]} 29... Nf5 {[%clk 0:00:16.8]} 30. Qe2 {[%clk
0:01:28.6]} 30... a5 {[%clk 0:00:07.6]} 31. Bf4 {[%clk 0:01:26.2]} 31... Qc8
{[%clk 0:00:07.1]} 32. Qe5 {[%clk 0:01:23.2]} 32... Nh4 {[%clk 0:00:07.2]} 33.
Bg3 {[%clk 0:01:08.2]} 33... Nf5 {[%clk 0:00:03.6]} 34. Bf2 {[%clk 0:01:07.6]}
34... a4 {[%clk 0:00:02.2]} 35. Qxc5 {[%clk 0:01:07.7]} 35... Qe6 {[%clk
0:00:01.6]} 36. Qe5 {[%clk 0:01:07.5]} 36... Qxe5 {[%clk 0:00:02]} 37. Nxe5
{[%clk 0:01:07.8]} 37... axb3 {[%clk 0:00:02.9]} 38. axb3 {[%clk 0:01:08.1]}
38... f6 {[%clk 0:00:03.8]} 39. Nd3 {[%clk 0:01:07.8]} 39... Kf7 {[%clk
0:00:04.3]} 40. g4 {[%clk 0:01:06.5]} 40... Ne7 {[%clk 0:00:03.8]} 41. Bxd4
{[%clk 0:01:04.5]} 41... Bxf3 {[%clk 0:00:03.5]} 42. Kf2 {[%clk 0:01:05.3]}
42... Bd1 {[%clk 0:00:03]} 43. b4 {[%clk 0:01:04.6]} 43... h5 {[%clk 0:00:03.6]}
44. b5 {[%clk 0:01:04.3]} 44... hxg4 {[%clk 0:00:03.5]} 45. hxg4 {[%clk
0:01:00.7]} 45... Bxg4 {[%clk 0:00:04.4]} 46. c5 {[%clk 0:00:59.6]} 46... Bd7
{[%clk 0:00:04.6]} 47. c6 {[%clk 0:00:55.4]} 47... Bxc6 {[%clk 0:00:03.7]} 48.
bxc6 {[%clk 0:00:56.3]} 48... Nxc6 {[%clk 0:00:04.4]} 49. Bc3 {[%clk 0:00:56.2]}
49... Ne5 {[%clk 0:00:05.3]} 50. Bxe5 {[%clk 0:00:54.4]} 50... fxe5 {[%clk
0:00:06.2]} 51. Nxe5+ {[%clk 0:00:54.6]} 51... Ke6 {[%clk 0:00:07.1]} 52. Nf3
{[%clk 0:00:54.7]} 52... g5 {[%clk 0:00:08]} 53. Nxg5+ {[%clk 0:00:54.9]}
1/2-1/2

[Event "Late-Titled-Tuesday-Blitz-February-13-2024"]
[Site "Chess.com"]
[Date "2024.02.13"]
[Round "3"]
[White "ChessLover0108"]
[Black "AlexPapasimakopoulos"]
[Result "0-1"]
[WhiteElo "2986"]
[BlackElo "2771"]
[TimeControl "180+1"]
[EndTime "14:27:59 PST"]
[Termination "AlexPapasimakopoulos won on time"]

1. d4 {[%clk 0:03:00.7]} 1... d5 {[%clk 0:02:59.2]} 2. c4 {[%clk 0:03:00.6]}
2... e6 {[%clk 0:02:59.6]} 3. Nc3 {[%clk 0:03:00.5]} 3... a6 {[%clk 0:03:00.2]}
4. cxd5 {[%clk 0:03:00.3]} 4... exd5 {[%clk 0:03:01.1]} 5. Nf3 {[%clk
0:03:01.2]} 5... c6 {[%clk 0:03:01.4]} 6. Bf4 {[%clk 0:02:59.6]} 6... Bd6 {[%clk
0:03:01.8]} 7. Be5 {[%clk 0:02:50.5]} 7... Bxe5 {[%clk 0:02:56.2]} 8. dxe5
{[%clk 0:02:47]} 8... Bg4 {[%clk 0:02:52.7]} 9. e4 {[%clk 0:02:28.8]} 9... Ne7
{[%clk 0:02:36.2]} 10. exd5 {[%clk 0:01:59.1]} 10... cxd5 {[%clk 0:02:34.7]} 11.
Qa4+ {[%clk 0:01:48.8]} 11... Bd7 {[%clk 0:02:23.8]} 12. Qf4 {[%clk 0:01:29]}
12... Be6 {[%clk 0:02:07.5]} 13. Bd3 {[%clk 0:01:26.3]} 13... h6 {[%clk
0:02:06.4]} 14. O-O {[%clk 0:01:24]} 14... Nbc6 {[%clk 0:02:05.4]} 15. Ne2
{[%clk 0:01:19.5]} 15... O-O {[%clk 0:01:54.6]} 16. Ned4 {[%clk 0:01:12.3]}
16... Qd7 {[%clk 0:01:54]} 17. Rac1 {[%clk 0:01:10.7]} 17... Rac8 {[%clk
0:01:52]} 18. h3 {[%clk 0:01:06.5]} 18... Nxd4 {[%clk 0:01:51.5]} 19. Nxd4
{[%clk 0:01:07.4]} 19... Rxc1 {[%clk 0:01:51.3]} 20. Rxc1 {[%clk 0:01:07.4]}
20... Rc8 {[%clk 0:01:52]} 21. Rxc8+ {[%clk 0:00:46.2]} 21... Qxc8 {[%clk
0:01:50]} 22. Qe3 {[%clk 0:00:47]} 22... Bf5 {[%clk 0:01:35.2]} 23. Be2 {[%clk
0:00:29.2]} 23... Nc6 {[%clk 0:01:29.4]} 24. g4 {[%clk 0:00:10.6]} 24... Nxd4
{[%clk 0:01:23.7]} 25. Qxd4 {[%clk 0:00:11.5]} 25... Be6 {[%clk 0:01:18]} 26. f4
{[%clk 0:00:10.5]} 26... g6 {[%clk 0:01:14.3]} 27. Kf2 {[%clk 0:00:04.7]} 27...
Qc2 {[%clk 0:01:10.7]} 28. a3 {[%clk 0:00:05.4]} 28... a5 {[%clk 0:01:01.4]} 29.
Qc3 {[%clk 0:00:05.7]} 29... Qe4 {[%clk 0:00:59]} 30. Qe3 {[%clk 0:00:06.3]}
30... Qa4 {[%clk 0:00:55.7]} 31. Qd2 {[%clk 0:00:03.2]} 31... b6 {[%clk
0:00:50.5]} 32. Bf3 {[%clk 0:00:03.8]} 32... Qc4 {[%clk 0:00:48]} 33. Kg3 {[%clk
0:00:02.7]} 33... d4 {[%clk 0:00:45.7]} 34. Be4 {[%clk 0:00:02.9]} 34... Bd5
{[%clk 0:00:34.5]} 35. Bd3 {[%clk 0:00:02.7]} 35... Qc7 {[%clk 0:00:33.2]} 36.
Kf2 {[%clk 0:00:02.8]} 36... Bb7 {[%clk 0:00:32.8]} 37. Qc2 {[%clk 0:00:02.7]}
37... Qd8 {[%clk 0:00:29.4]} 38. Kg3 {[%clk 0:00:02.5]} 38... Qd5 {[%clk
0:00:29.4]} 39. Qf2 {[%clk 0:00:01.9]} 39... b5 {[%clk 0:00:24]} 0-1